bitfinex/quotes_BTCUSD_20251009
["timestamp","ask_amount","ask_price","bid_price","bid_amount"]
[1760028970819,0.11500999,120330.0,120320.0,0.4241034]
[1760028971044,0.11500999,120330.0,120320.0,0.42450489]
[1760028971266,0.19500679,120330.0,120320.0,0.16674489]
[1760028971477,0.19500679,120330.0,120320.0,0.25820149]
[1760028971730,0.19500679,120330.0,120320.0,0.42442489]
[1760028972344,0.19500679,120330.0,120320.0,0.42542489]
[1760028972553,0.19500679,120330.0,120320.0,0.00152149]
[1760028972554,0.36121638,120330.0,120320.0,0.00152149]
[1760028972763,0.19500679,120330.0,120320.0,0.25900149]
[1760028973042,0.19500679,120330.0,120320.0,0.16774489]
[1760028973253,0.19500679,120330.0,120320.0,0.25896149]
[1760028973663,0.19500679,120330.0,120320.0,0.16774489]
[1760028973870,0.19500679,120330.0,120320.0,0.42514489]
[1760028974279,0.19500679,120330.0,120320.0,0.00152149]
[1760028974438,0.19500679,120330.0,120320.0,0.25864149]
[1760028974652,0.45212679,120330.0,120320.0,0.25864149]
[1760028974873,0.19500679,120330.0,120320.0,0.42486489]
[1760028975231,0.11500999,120330.0,120320.0,0.16774489]
[1760028975455,0.11500999,120330.0,120320.0,0.42474489]
[1760028975666,0.11500999,120330.0,120320.0,0.23237489]
[1760028975870,10.02499999,120340.0,120330.0,0.16620959]
[1760028976144,10.02499999,120340.0,120330.0,0.63225959]
[1760028976502,10.02548999,120340.0,120330.0,0.42308959]
[1760028976735,10.11464999,120340.0,120330.0,0.42308959]
[1760028976922,10.02548999,120340.0,120330.0,0.42308959]
[1760028977305,10.11464999,120340.0,120330.0,0.42308959]
[1760028977491,10.02548999,120340.0,120330.0,0.48771959]
[1760028977691,10.06603999,120340.0,120330.0,0.16620959]
[1760028977936,0.02499999,120330.0,120320.0,0.16674489]
[1760028978179,0.11527999,120330.0,120320.0,0.42326489]
[1760028978327,0.11527999,120330.0,120320.0,0.16674489]
[1760028978550,0.11478999,120330.0,120320.0,0.23137489]
[1760028978772,0.02499999,120330.0,120320.0,0.63235489]
[1760028979117,0.02499999,120330.0,120320.0,0.53613489]
[1760028979329,0.07400999,120330.0,120320.0,0.53613489]
[1760028979527,0.07400999,120330.0,120320.0,0.53713489]
[1760028979974,0.02499999,120330.0,120320.0,0.28069489]
[1760028980316,10.02499999,120340.0,120330.0,0.16620959]
[1760028980443,10.02499999,120340.0,120330.0,0.27915959]
[1760028980858,10.07427999,120340.0,120330.0,0.53519959]
[1760028981062,10.06523999,120340.0,120330.0,0.53519959]
[1760028981286,10.02499999,120340.0,120330.0,0.63141959]
[1760028981773,10.0,120340.0,120330.0,0.63125959]
[1760028981981,10.0,120340.0,120330.0,0.71438165]
[1760028982392,10.0,120340.0,120330.0,0.45850165]
[1760028982605,10.0,120340.0,120330.0,0.71426165]
[1760028983180,10.0,120340.0,120330.0,0.45850165]
[1760028983390,10.0,120340.0,120330.0,0.71741959]
[1760028983596,10.02499999,120340.0,120330.0,0.71737959]
[1760028983796,10.02499999,120340.0,120330.0,0.46177959]
[1760028984001,10.02499999,120340.0,120330.0,0.71737959]
[1760028984432,10.02499999,120340.0,120330.0,0.71837959]
[1760028984644,10.24782679,120340.0,120330.0,0.16720959]
[1760028984853,10.24782679,120340.0,120330.0,0.42272959]
[1760028985260,10.24782679,120340.0,120330.0,0.16720959]
[1760028985465,10.24782679,120340.0,120330.0,0.25648]
[1760028985675,10.24782679,120340.0,120330.0,0.42268959]
[1760028985876,10.24782679,120340.0,120330.0,0.16720959]
[1760028986079,10.24782679,120340.0,120330.0,0.42268959]
[1760028986683,10.24782679,120340.0,120330.0,0.16720959]
[1760028986913,10.42302999,120340.0,120330.0,0.42240959]
[1760028987736,10.42302999,120340.0,120330.0,0.48703959]
[1760028987737,10.32659999,120340.0,120330.0,0.48703959]
[1760028988013,10.07139999,120340.0,120330.0,0.48703959]
[1760028988425,10.07139999,120340.0,120330.0,0.48683959]
[1760028988629,10.12217999,120340.0,120330.0,0.42216959]
[1760028988844,10.07139999,120340.0,120330.0,0.48675959]
[1760028989050,10.02499999,120340.0,120330.0,0.48675959]
[1760028989250,10.02499999,120340.0,120330.0,0.63117959]
[1760028989465,10.02499999,120340.0,120330.0,0.37637959]
[1760028989682,10.02499999,120340.0,120330.0,0.63117959]
[1760028990091,10.02499999,120340.0,120330.0,0.63617959]
[1760028990707,10.02499999,120340.0,120330.0,0.38137959]
[1760028990921,10.0,120340.0,120330.0,0.71906165]
[1760028992370,10.0,120340.0,120330.0,0.71898165]
[1760028992801,9.60046709,120340.0,120330.0,0.90450164]
[1760028993017,9.36904841,120340.0,120330.0,0.90450164]
[1760028993231,9.36904841,120340.0,120330.0,0.46450165]
[1760028993451,9.36904841,120340.0,120330.0,0.80526165]
[1760028993662,9.36904841,120340.0,120330.0,0.52818632]
[1760028993875,9.36904841,120340.0,120330.0,0.61458632]
[1760028994087,9.36904841,120340.0,120330.0,0.80590165]
[1760028995115,9.36904841,120340.0,120330.0,0.46550165]
[1760028995323,9.36904841,120340.0,120330.0,0.80666165]
[1760028995552,9.36904841,120340.0,120330.0,0.46350165]
[1760028995748,9.36904841,120340.0,120330.0,0.55290165]
[1760028995977,9.36904841,120340.0,120330.0,0.80754165]
[1760028996608,9.37001841,120340.0,120330.0,0.37028165]
[1760028996858,9.41080841,120340.0,120330.0,0.37028165]
[1760028997067,9.36904841,120340.0,120330.0,0.46650165]
[1760028997281,9.36904841,120340.0,120330.0,0.72094165]
[1760028997697,9.36904841,120340.0,120330.0,0.71994165]
[1760028997909,9.36904841,120340.0,120330.0,0.71882165]
[1760028998322,9.36904841,120340.0,120330.0,0.71982165]
[1760028998540,9.36904841,120340.0,120330.0,0.36928165]
[1760028998746,9.4860584,120340.0,120330.0,0.007]
[1760028998975,10.81777298,120340.0,120330.0,0.007]
[1760028999195,10.56361298,120340.0,120330.0,0.007]
[1760028999624,10.92685837,120340.0,120330.0,0.00651]
[1760028999835,10.58117837,120340.0,120330.0,0.00651]
[1760029000049,11.25041298,120340.0,120330.0,0.00651]
[1760029000258,10.91569618,120340.0,120330.0,0.00651]
[1760029000464,10.76217623,120340.0,120330.0,0.00651]
[1760029000661,11.17041618,120340.0,120330.0,0.00551]
[1760029000905,10.82929618,120340.0,120330.0,0.00451]
[1760029001115,10.41637623,120340.0,120330.0,0.00451]
[1760029001312,10.82561618,120340.0,120330.0,0.00451]
[1760029001514,10.07537623,120340.0,120330.0,0.00451]
[1760029001719,9.52309046,120340.0,120330.0,0.00451]
[1760029001919,9.82718046,120340.0,120330.0,0.00451]
[1760029002091,9.94576623,120340.0,120330.0,0.00451]
[1760029002291,9.73889623,120340.0,120330.0,0.00451]
[1760029002532,9.57270046,120340.0,120330.0,0.00451]
[1760029002886,9.4405484,120340.0,120330.0,0.28350959]
[1760029003087,9.6524084,120340.0,120330.0,0.28350959]
[1760029003496,9.4420284,120340.0,120330.0,0.17071959]
[1760029003698,9.7743052,120340.0,120330.0,0.00451]
[1760029003922,9.8208552,120340.0,120330.0,0.17071959]
[1760029004125,9.7408584,120340.0,120330.0,0.17071959]
[1760029004633,9.7398584,120340.0,120330.0,0.17071959]
[1760029004841,9.7398584,120340.0,120330.0,0.00451]
[1760029004842,9.7396584,120340.0,120330.0,0.00451]
[1760029005007,9.7396584,120340.0,120330.0,0.17071959]
[1760029005204,9.4380284,120340.0,120330.0,0.17071959]
[1760029005404,9.4380284,120340.0,120330.0,0.23484959]
[1760029005607,9.6480884,120340.0,120330.0,0.37462959]
[1760029006632,9.3945384,120340.0,120330.0,0.28109959]
[1760029006853,9.6901284,120340.0,120330.0,0.28109959]
[1760029007004,9.6899284,120340.0,120330.0,0.21696959]
[1760029007203,9.3940484,120340.0,120330.0,0.06864]
[1760029007407,9.6487884,120340.0,120330.0,0.28109959]
[1760029007850,9.4855684,120340.0,120330.0,0.00451]
[1760029008030,9.7392484,120340.0,120330.0,0.17071959]
[1760029008226,9.7392484,120340.0,120330.0,0.00451]
[1760029008810,9.7392484,120340.0,120330.0,0.17071959]
[1760029010401,9.4370384,120340.0,120330.0,0.17071959]
[1760029010560,9.6905984,120340.0,120330.0,0.17071959]
[1760029012133,9.6905984,120340.0,120320.0,0.21299452]
[1760029012134,0.19120958,120330.0,120320.0,0.00052149]
[1760029012366,1.84200406,120330.0,120320.0,0.00052149]
[1760029012583,2.01752086,120330.0,120320.0,0.00052149]
[1760029012786,0.79625164,120330.0,120320.0,0.00052149]
[1760029012993,1.04993164,120330.0,120320.0,0.00052149]
[1760029013167,1.50544406,120330.0,120320.0,0.00052149]
[1760029013397,1.59184406,120330.0,120320.0,0.00052149]
[1760029013513,1.59284406,120330.0,120320.0,0.00052149]
[1760029014384,1.50840406,120330.0,120320.0,0.00052149]
[1760029014547,1.59480406,120330.0,120320.0,0.00052149]
[1760029014962,1.59460406,120330.0,120320.0,0.00052149]
[1760029015833,1.34116406,120330.0,120320.0,0.00052149]
[1760029016015,1.59456406,120330.0,120320.0,0.00052149]
[1760029016213,1.34116406,120330.0,120320.0,0.00052149]
[1760029016449,1.59448406,120330.0,120320.0,0.00052149]
[1760029016661,1.67448086,120330.0,120320.0,0.00052149]
[1760029017483,1.5913588,120330.0,120320.0,0.00052149]
[1760029017694,0.32864999,120330.0,120320.0,0.00052149]
[1760029017900,0.37625999,120330.0,120320.0,0.00052149]
[1760029018074,0.91817241,120330.0,120320.0,0.16674489]
[1760029018299,0.37605999,120330.0,120320.0,0.16674489]
[1760029018438,0.32848999,120330.0,120320.0,0.16674489]
[1760029018866,0.07544999,120330.0,120320.0,0.16674489]
[1760029019069,0.87032241,120330.0,120320.0,0.16674489]
[1760029019277,0.87020241,120330.0,120320.0,0.16674489]
[1760029019565,0.87020241,120330.0,120320.0,0.00052149]
[1760029019767,0.07544999,120330.0,120320.0,0.16674489]
[1760029019970,0.32820999,120330.0,120320.0,0.23087489]
[1760029020395,0.32820999,120330.0,120320.0,0.16674489]
[1760029020600,0.07544999,120330.0,120320.0,0.16674489]
[1760029020809,0.32820999,120330.0,120320.0,0.16674489]
[1760029021011,0.32820999,120330.0,120320.0,0.27712489]
[1760029021467,0.04854,120330.0,120320.0,0.27712489]
[1760029021678,0.28055999,120330.0,120320.0,0.37065489]
[1760029022133,0.25552,120330.0,120320.0,0.37065489]
[1760029022343,0.25452,120330.0,120320.0,0.37065489]
[1760029022786,0.25452,120330.0,120320.0,0.37165489]
[1760029023001,0.25252,120330.0,120320.0,0.37165489]
[1760029023440,9.3940484,120340.0,120330.0,0.16620959]
[1760029023643,9.62132841,120340.0,120330.0,0.27658959]
[1760029023855,9.62132841,120340.0,120330.0,0.37011959]
[1760029025187,9.36904841,120340.0,120330.0,0.37011959]
[1760029026659,9.36904841,120340.0,120330.0,0.62199959]
[1760029026871,9.36904841,120340.0,120330.0,0.37211959]
[1760029027135,9.36953841,120340.0,120330.0,0.27858959]
[1760029027311,9.62137841,120340.0,120330.0,0.27858959]
[1760029027967,9.62080841,120340.0,120330.0,0.37211959]
[1760029028218,9.36904841,120340.0,120330.0,0.37211959]
[1760029028721,9.36904841,120340.0,120330.0,0.62379959]
[1760029028961,9.36904841,120340.0,120330.0,0.64827155]
[1760029029188,9.36904841,120340.0,120330.0,0.39659155]
[1760029029424,9.36904841,120340.0,120330.0,0.64827155]
[1760029029644,9.36904841,120340.0,120330.0,0.64815155]
[1760029029841,9.36904841,120340.0,120330.0,0.37211959]
[1760029030069,9.36904841,120340.0,120330.0,0.62363959]
[1760029030312,9.36904841,120340.0,120330.0,0.37211959]
[1760029030528,9.36904841,120340.0,120330.0,0.68716223]
[1760029031434,9.36904841,120340.0,120330.0,0.46027403]
[1760029031663,9.36904841,120340.0,120330.0,0.71159403]
[1760029031890,9.36904841,120340.0,120330.0,0.46027403]
[1760029032561,9.36904841,120340.0,120330.0,0.54667403]
[1760029032793,9.36904841,120340.0,120330.0,0.79787403]
[1760029032939,9.36904841,120340.0,120330.0,0.71143403]
[1760029033147,9.36904841,120340.0,120330.0,0.43564223]
[1760029033360,9.36904841,120340.0,120330.0,0.68680223]
[1760029034038,9.36904841,120340.0,120330.0,0.43564223]
[1760029034211,9.36904841,120340.0,120330.0,0.68668223]
[1760029034470,9.36904841,120340.0,120330.0,0.68660223]
[1760029034672,9.36904841,120340.0,120330.0,0.71154974]
[1760029035018,9.36904841,120340.0,120330.0,0.71142974]
[1760029035420,9.36904841,120340.0,120330.0,0.46058974]
[1760029035625,9.36904841,120340.0,120330.0,0.71142974]
[1760029035828,8.99101678,120340.0,120330.0,0.71126974]
[1760029036080,8.99101678,120340.0,120330.0,0.71130974]
[1760029036500,8.99101678,120340.0,120330.0,0.71126974]
[1760029036727,8.45360735,120340.0,120330.0,0.71126974]
[1760029036935,8.45360735,120340.0,120330.0,0.92203339]
[1760029037142,8.00547517,120340.0,120330.0,1.04158529]
[1760029037353,7.91200131,120340.0,120330.0,1.29218529]
[1760029037580,7.71368644,120340.0,120330.0,1.29218529]
[1760029037769,7.63152357,120340.0,120330.0,0.97388232]
[1760029037992,7.52869562,120340.0,120330.0,0.97388232]
[1760029038196,7.32884958,120340.0,120330.0,1.1911053]
[1760029038380,7.13028328,120340.0,120330.0,0.97288232]
[1760029038689,6.81268917,120340.0,120330.0,1.31072232]
[1760029038896,6.81268917,120340.0,120330.0,0.4870334]
[1760029039114,6.81268917,120340.0,120330.0,0.54898974]
[1760029039972,6.81268917,120340.0,120330.0,0.79938974]
[1760029040178,6.81268917,120340.0,120330.0,0.46258974]
[1760029040393,6.81268917,120340.0,120330.0,0.71294974]
[1760029040807,7.45662971,120340.0,120330.0,0.02894751]
[1760029041010,7.75562971,120340.0,120330.0,0.004]
[1760029041244,7.32068494,120340.0,120330.0,0.004]
[1760029041689,7.32068494,120340.0,120330.0,0.002]
[1760029041897,7.50522971,120340.0,120320.0,0.00052149]
[1760029042097,7.5616265,120340.0,120330.0,0.002]
[1760029042278,7.7561224,120340.0,120330.0,0.002]
[1760029042599,7.7561224,120340.0,120330.0,0.001]
[1760029042600,7.8047224,120340.0,120330.0,0.001]
[1760029043344,7.8047224,120340.0,120320.0,0.00152149]
[1760029043481,0.29649,120330.0,120320.0,0.16774489]
[1760029043835,0.29788,120330.0,120320.0,0.00152149]
[1760029044281,0.72172435,120330.0,120320.0,0.00152149]
[1760029044699,0.12056999,120330.0,120320.0,0.00152149]
[1760029044909,1.05856435,120330.0,120320.0,0.00052149]
[1760029045109,0.72172435,120330.0,120320.0,0.00052149]
[1760029045231,0.97208435,120330.0,120320.0,0.00052149]
[1760029045440,1.05848435,120330.0,120320.0,0.00052149]
[1760029045674,0.72172435,120330.0,120320.0,0.00052149]
[1760029045873,1.05848435,120330.0,120320.0,0.00152149]
[1760029046081,0.72172435,120330.0,120320.0,0.00152149]
[1760029046417,6.95176186,120340.0,120320.0,0.28255489]
[1760029046625,0.25028,120330.0,120320.0,0.38109489]
[1760029046802,7.59117296,120340.0,120320.0,0.38109489]
[1760029046803,7.42497663,120340.0,120320.0,0.38109489]
[1760029047016,0.25028,120330.0,120320.0,0.38109489]
[1760029047627,0.25077,120330.0,120320.0,0.28255489]
[1760029047825,0.25028,120330.0,120320.0,0.28255489]
[1760029048060,0.25028,120330.0,120320.0,0.38109489]
[1760029048240,7.31452393,120340.0,120320.0,0.3810938]
[1760029048496,0.68547477,120330.0,120320.0,0.00052149]
[1760029048710,0.28675958,120330.0,120320.0,0.00052149]
[1760029048912,0.97174435,120330.0,120320.0,0.00052149]
[1760029049117,1.05810435,120330.0,120320.0,0.00052149]
[1760029050386,1.39810435,120330.0,120320.0,0.00052149]
[1760029051230,1.06170435,120330.0,120320.0,0.00052149]
[1760029051443,1.39794435,120330.0,120320.0,0.00052149]
[1760029051650,0.62675958,120330.0,120320.0,0.00052149]
[1760029051840,1.39786435,120330.0,120320.0,0.00052149]
[1760029052241,0.89549476,120330.0,120320.0,0.00052149]
[1760029052444,1.39774435,120330.0,120320.0,0.00052149]
[1760029052676,1.22810115,120330.0,120320.0,0.00052149]
[1760029052886,1.47774115,120330.0,120320.0,0.00052149]
[1760029053101,1.14810435,120330.0,120320.0,0.00052149]
[1760029053316,1.39766435,120330.0,120320.0,0.00052149]
[1760029053729,1.14810435,120330.0,120320.0,0.00052149]
[1760029053878,1.39766435,120330.0,120320.0,0.00052149]
[1760029054288,1.05866435,120330.0,120320.0,0.00052149]
[1760029054690,1.09443924,120330.0,120320.0,0.00052149]
[1760029054893,0.75863924,120330.0,120320.0,0.00052149]
[1760029055228,1.44015924,120330.0,120320.0,0.00052149]
[1760029055390,1.78115924,120330.0,120320.0,0.00052149]
[1760029055591,1.78111924,120330.0,120320.0,0.00052149]
[1760029056034,1.09963924,120330.0,120320.0,0.00052149]
[1760029056448,1.78099924,120330.0,120320.0,0.00052149]
[1760029057191,1.34605447,120330.0,120320.0,0.00052149]
[1760029057387,1.78099924,120330.0,120320.0,0.00052149]
[1760029058024,1.78087924,120330.0,120320.0,0.00052149]
[1760029059437,1.09963924,120330.0,120320.0,0.00052149]
[1760029059693,1.78087924,120330.0,120320.0,0.00052149]
[1760029060306,1.78075924,120330.0,120320.0,0.00052149]
[1760029061108,1.81091114,120330.0,120320.0,0.00052149]
[1760029062295,1.77497625,120330.0,120320.0,0.00052149]
[1760029063243,1.09385625,120330.0,120320.0,0.00052149]
[1760029063406,1.77497625,120330.0,120320.0,0.00052149]
[1760029064007,1.06370435,120330.0,120320.0,0.00052149]
[1760029064217,1.74482435,120330.0,120320.0,0.00052149]
[1760029064420,1.78801378,120330.0,120320.0,0.00052149]
[1760029064635,1.10689378,120330.0,120320.0,0.00052149]
[1760029064840,1.44225378,120330.0,120320.0,0.00052149]
[1760029064981,1.19333378,120330.0,120320.0,0.00052149]
[1760029065177,1.10689378,120330.0,120320.0,0.00052149]
[1760029065420,1.44225378,120330.0,120320.0,0.00052149]
[1760029066062,0.96411958,120330.0,120320.0,0.01052149]
[1760029066274,1.39906435,120330.0,120320.0,0.01052149]
[1760029066491,1.15014435,120330.0,120320.0,0.01052149]
[1760029066707,1.39906435,120330.0,120320.0,0.01052149]
[1760029066932,1.42921625,120330.0,120320.0,0.01052149]
[1760029067105,1.29302603,120330.0,120320.0,0.01052149]
[1760029067348,1.57125426,120330.0,120320.0,0.01052149]
[1760029067555,1.32667348,120330.0,120320.0,0.01052149]
[1760029067741,1.57559348,120330.0,120320.0,0.01052149]
[1760029067978,1.57559348,120330.0,120300.0,0.00050682]
[1760029067979,0.65633388,120310.0,120300.0,0.00050682]
[1760029068198,1.08589298,120310.0,120300.0,0.00050682]
[1760029068415,1.08687298,120310.0,120300.0,0.00050682]
[1760029068589,1.13540298,120310.0,120300.0,0.00050682]
[1760029068824,0.78148619,120310.0,120300.0,0.00050682]
[1760029069050,1.48764618,120310.0,120300.0,0.00050682]
[1760029069271,0.80648618,120310.0,120300.0,0.00050682]
[1760029069488,1.48764618,120310.0,120300.0,0.00050682]
[1760029069692,0.80648618,120310.0,120300.0,0.00050682]
[1760029069913,1.48964618,120310.0,120300.0,0.00050682]
[1760029070109,1.80773686,120310.0,120300.0,0.00050682]
[1760029070327,1.14848618,120310.0,120300.0,0.00050682]
[1760029070540,1.58172618,120310.0,120300.0,0.00050682]
[1760029071003,1.83064618,120310.0,120300.0,0.00050682]
[1760029071224,1.85985861,120310.0,120300.0,0.00050682]
[1760029071438,1.93985541,120310.0,120300.0,0.00050682]
[1760029071650,1.91064298,120310.0,120300.0,0.00050682]
[1760029071888,2.10397086,120310.0,120300.0,0.00050682]
[1760029072096,2.39691112,120310.0,120300.0,0.00050682]
[1760029072310,1.24883124,120310.0,120300.0,0.00050682]
[1760029072522,1.93269601,120310.0,120300.0,0.00050682]
[1760029072778,1.28080214,120310.0,120300.0,0.00050682]
[1760029072953,1.25153601,120310.0,120300.0,0.00050682]
[1760029073173,1.87552154,120310.0,120300.0,0.00050682]
[1760029073381,1.34080154,120310.0,120300.0,0.00050682]
[1760029073595,1.34080032,120310.0,120300.0,0.00155002]
[1760029073805,1.74377601,120310.0,120300.0,0.00155002]
[1760029074021,2.42764078,120310.0,120300.0,0.00155002]
[1760029074227,1.74377601,120310.0,120300.0,0.00155002]
[1760029074605,1.99269601,120310.0,120300.0,0.00155002]
[1760029074815,1.31153601,120310.0,120300.0,0.00155002]
[1760029075183,1.89802942,120310.0,120300.0,0.00155002]
[1760029075365,1.94199177,120310.0,120300.0,0.00155002]
[1760029075606,1.89802942,120310.0,120300.0,0.00155002]
[1760029075808,1.94199177,120310.0,120300.0,0.00155002]
[1760029076384,1.91273921,120310.0,120300.0,0.00155002]
[1760029076587,1.31153601,120310.0,120300.0,0.00155002]
[1760029076928,1.99273601,120310.0,120300.0,0.00155002]
[1760029077945,1.94877366,120310.0,120300.0,0.00155002]
[1760029078126,1.95639372,120310.0,120300.0,0.00155002]
[1760029078439,1.92857019,120310.0,120300.0,0.00155002]
[1760029078613,2.01501019,120310.0,120300.0,0.00155002]
[1760029079243,1.33381019,120310.0,120300.0,0.00155002]
[1760029079458,0.75263209,120310.0,120300.0,0.00155002]
[1760029079767,1.86577686,120310.0,120300.0,0.00155002]
[1760029080594,1.18191209,120310.0,120300.0,0.00155002]
[1760029080807,1.86577686,120310.0,120300.0,0.00155002]
[1760029081641,0.16626485,120290.0,120280.0,0.12713031]
[1760029081843,1.05009951,120290.0,120280.0,0.12713031]
[1760029082049,0.63711555,120290.0,120280.0,0.12713031]
[1760029082260,1.05009951,120290.0,120280.0,0.12713031]
[1760029082674,0.61515474,120290.0,120280.0,0.12713031]
[1760029083118,1.13009631,120290.0,120280.0,0.12713031]
[1760029083324,1.13009631,120290.0,120280.0,0.12813031]
[1760029083528,0.61515474,120290.0,120280.0,0.12913031]
[1760029083740,0.70159474,120290.0,120280.0,0.12913031]
[1760029085025,1.20544323,120290.0,120280.0,0.12913031]
[1760029085490,0.77049846,120290.0,120280.0,0.12913031]
[1760029085697,0.85049526,120290.0,120280.0,0.12913031]
[1760029085897,0.60157526,120290.0,120280.0,0.12913031]
[1760029086103,0.85049526,120290.0,120280.0,0.12813031]
[1760029086309,1.28544003,120290.0,120280.0,0.12713031]
[1760029086523,1.25617088,120290.0,120280.0,0.12813031]
[1760029086757,1.25617088,120290.0,120280.0,0.12913031]
[1760029086984,1.55222715,120290.0,120280.0,0.12913031]
[1760029087196,1.30334715,120290.0,120280.0,0.12713031]
[1760029087399,1.55222715,120290.0,120280.0,0.12817378]
[1760029087756,1.95672362,120290.0,120280.0,0.12817378]
[1760029087960,1.70784362,120290.0,120280.0,0.12817378]
[1760029088187,1.95972362,120290.0,120280.0,0.12817378]
[1760029088442,2.11032579,120290.0,120280.0,0.06081275]
[1760029088983,2.01859579,120290.0,120280.0,1e-08]
[1760029089190,1.58365102,120290.0,120280.0,1e-08]
[1760029089401,0.61134439,120270.0,120260.0,0.13409673]
[1760029089582,1.35221982,120270.0,120260.0,0.13409673]
[1760029089818,1.75666982,120270.0,120260.0,0.13409673]
[1760029090025,1.70676982,120270.0,120260.0,0.13409673]
[1760029090252,1.45788982,120270.0,120260.0,0.13409673]
[1760029090472,1.61113182,120270.0,120260.0,1e-08]
[1760029090678,1.95495372,120270.0,120260.0,1e-08]
[1760029090890,2.12324622,120270.0,120260.0,1e-08]
[1760029091097,1.87436622,120270.0,120260.0,1e-08]
[1760029091303,0.59730189,120260.0,120250.0,2.82432226]
[1760029091510,2.45715468,120260.0,120250.0,2.82432226]
[1760029091714,2.52673304,120260.0,120250.0,2.82432226]
[1760029091921,2.82061635,120260.0,120250.0,2.31866061]
[1760029092123,3.06949635,120260.0,120250.0,2.1294898]
[1760029092302,2.27781304,120260.0,120250.0,2.05924618]
[1760029092538,2.29322704,120260.0,120250.0,2.05924618]
[1760029092807,2.24079804,120260.0,120250.0,2.05924618]
[1760029093097,2.36819604,120260.0,120250.0,2.05924618]
[1760029093323,2.34850204,120260.0,120250.0,2.05924618]
[1760029093527,2.12056604,120260.0,120250.0,2.05924618]
[1760029093750,2.12256604,120260.0,120250.0,2.05924618]
[1760029093974,2.10138168,120260.0,120250.0,2.05924618]
[1760029094233,1.54506167,120260.0,120250.0,1.45457464]
[1760029094439,2.72185168,120260.0,120250.0,1.45457464]
[1760029094686,2.09579574,120260.0,120250.0,1.45457464]
[1760029094903,2.34468807,120260.0,120250.0,1.45457464]
[1760029095116,2.45146284,120260.0,120250.0,1.45614035]
[1760029095537,2.34468751,120260.0,120250.0,1.45614035]
[1760029095742,2.34468751,120260.0,120250.0,1.080283]
[1760029095743,2.2945842,120260.0,120250.0,1.080283]
[1760029095954,3.16920751,120260.0,120250.0,0.97665772]
[1760029096153,3.12548345,120260.0,120250.0,0.76203476]
[1760029096361,3.16921415,120260.0,120250.0,0.76203476]
[1760029096755,1.94138927,120240.0,120230.0,0.13730889]
[1760029096983,2.32702034,120240.0,120230.0,0.13730889]
[1760029097194,1.85753003,120240.0,120230.0,0.13730889]
[1760029097414,1.85753003,120240.0,120230.0,0.138353]
[1760029097415,1.56486306,120240.0,120230.0,0.138353]
[1760029097620,2.589401,120240.0,120010.0,0.18018168]
[1760029097826,0.02499999,120150.0,120110.0,0.06619503]
[1760029098029,0.16370999,120150.0,120130.0,0.16647521]
[1760029098229,4.25172479,120130.0,120120.0,0.25639969]
[1760029098412,4.25172479,120130.0,120120.0,0.0816]
[1760029098615,4.45427479,120130.0,120110.0,0.24896]
[1760029098814,3.21225488,120060.0,120050.0,0.5727274]
[1760029099042,3.21225488,120060.0,120050.0,0.9943642]
[1760029099043,2.56905271,120060.0,120050.0,0.9943642]
[1760029099258,0.04574,120130.0,120060.0,0.16658337]
[1760029099478,0.04574,120120.0,120070.0,0.01451086]
[1760029099689,0.10958,120070.0,120060.0,0.00015185]
[1760029099888,0.04574,120070.0,120060.0,0.00015185]
[1760029100095,0.13457999,120080.0,120060.0,0.00015185]
[1760029100096,0.04574,120080.0,120060.0,0.00015185]
[1760029100724,0.24573998,120080.0,120060.0,0.00015185]
[1760029100928,0.10958,120070.0,120060.0,0.00015185]
[1760029101350,0.20255,120070.0,120060.0,0.00015185]
[1760029101552,0.04574,120080.0,120060.0,0.00015185]
[1760029101753,0.04574,120090.0,120060.0,0.18894335]
[1760029101892,0.27073997,120100.0,120070.0,0.17489563]
[1760029102094,0.07073999,120120.0,120080.0,0.26139854]
[1760029102324,0.04999999,120070.0,120060.0,0.00015185]
[1760029102653,0.17577503,120090.0,120060.0,0.00015185]
[1760029102654,0.04574,120090.0,120060.0,0.00015185]
[1760029102775,0.07073999,120090.0,120060.0,0.00015185]
[1760029102976,0.07906638,120100.0,120070.0,0.21596]
[1760029103213,0.05406708,120090.0,120060.0,0.08667185]
[1760029103476,0.23728367,120090.0,120060.0,0.08667185]
[1760029103660,0.04574,120070.0,120060.0,0.34527185]
[1760029103835,0.04574,120080.0,120060.0,0.08667185]
[1760029104050,0.02499999,120090.0,120060.0,0.08667185]
[1760029104313,0.02499999,120090.0,120020.0,0.02500902]
[1760029104314,0.02499999,120050.0,120020.0,0.02500902]
[1760029104529,0.07089176,120050.0,120000.0,0.16666643]
[1760029104682,0.07089176,120050.0,120010.0,0.3795845]
[1760029104885,0.00015177,120050.0,120010.0,0.37958512]
[1760029105087,0.00015177,120050.0,120020.0,0.2596]
[1760029105457,0.00015177,120050.0,119960.0,0.10822789]
[1760029105458,0.02499999,120010.0,119960.0,0.10822789]
[1760029105673,0.02499999,120020.0,119970.0,0.27950806]
[1760029105879,0.07073999,120030.0,119980.0,0.17502786]
[1760029106091,0.02499999,120020.0,119960.0,0.12650386]
[1760029106249,0.02499999,120020.0,119970.0,0.43836341]
[1760029106453,0.02499999,120000.0,119960.0,0.27485424]
[1760029106653,0.00015166,120000.0,119970.0,0.26332]
[1760029106862,0.06619503,120000.0,119940.0,0.02502459]
[1760029107023,0.13457999,119980.0,119940.0,0.08624]
[1760029107224,0.13457999,119980.0,119940.0,0.0083375]
[1760029107427,0.13457999,119980.0,119950.0,0.17507146]
[1760029107718,0.13457999,119980.0,119930.0,0.25332031]
[1760029107719,0.04574,119970.0,119930.0,0.25332031]
[1760029107887,0.02499999,119990.0,119950.0,0.17507281]
[1760029108089,0.02499999,119990.0,119960.0,0.01667222]
[1760029108090,0.02499999,119980.0,119960.0,0.01667222]
[1760029108291,0.02499999,119990.0,119970.0,0.16670733]
[1760029108487,0.13693502,120000.0,119970.0,0.2646]
[1760029108696,0.14526835,120000.0,119970.0,0.17503693]
[1760029108906,0.02499999,120000.0,119980.0,0.16669414]
[1760029109324,0.07073999,120000.0,119990.0,0.01255548]
[1760029109519,0.22754999,120000.0,119990.0,0.01255548]
[1760029109730,0.42754997,120000.0,119990.0,0.01255548]
[1760029109933,0.33457997,120000.0,119990.0,0.01255548]
[1760029110141,0.02499999,120000.0,119990.0,0.01255548]
[1760029110734,0.07073999,120000.0,119990.0,0.01255548]
[1760029110944,0.02499999,120000.0,119990.0,0.01255548]
[1760029111350,0.03333332,120000.0,119990.0,0.01255548]
[1760029111578,0.07907332,120000.0,119990.0,0.01255548]
[1760029111983,0.03333332,120000.0,119990.0,0.01255548]
[1760029112187,0.09717332,120000.0,119990.0,0.01255548]
[1760029112389,0.07907332,120000.0,119990.0,0.01255548]
[1760029112872,0.03333332,120000.0,119990.0,0.01255548]
[1760029113473,0.02499999,120000.0,119990.0,0.01255548]
[1760029113691,0.03333332,120000.0,119990.0,0.01255548]
[1760029114094,0.14291332,120000.0,119990.0,0.01255548]
[1760029114707,0.07907332,120000.0,119990.0,0.01255548]
[1760029114912,0.27253333,120000.0,119990.0,0.01255548]
[1760029115087,0.02499999,120000.0,119990.0,0.01255548]